[Event "*** Titled Tuesday Blitz"]
[Site "Chess.com"]
[Date "2020.11.24"]
[Round "9"]
[White "Vi_Los"]
[Black "FMOlexandrProhorov"]
[Result "1-0"]
[WhiteElo "2358"]
[BlackElo "2190"]
[TimeControl "180+1"]
[EndTime "12:03:04 PST"]
[Termination "Vi_Los won by resignation"]

1. e4 {[%clk 0:02:59.7]} 1... c5 {[%clk 0:02:55.9]} 2. Nf3 {[%clk 0:02:59.3]}
2... e6 {[%clk 0:02:56.2]} 3. g3 {[%clk 0:02:58.2]} 3... Nc6 {[%clk 0:02:54.3]}
4. Bg2 {[%clk 0:02:57.7]} 4... g6 {[%clk 0:02:49.4]} 5. O-O {[%clk 0:02:51.2]}
5... Bg7 {[%clk 0:02:50.3]} 6. Nc3 {[%clk 0:02:49.6]} 6... Bf8 {[%clk
0:02:51.2]} 7. d4 {[%clk 0:02:46.9]} 7... Bg7 {[%clk 0:02:52.1]} 8. dxc5 {[%clk
0:02:40.1]} 8... Nge7 {[%clk 0:02:53]} 9. Nb5 {[%clk 0:02:31.2]} 9... O-O {[%clk
0:02:53.9]} 10. c3 {[%clk 0:02:27.8]} 10... a6 {[%clk 0:02:48.1]} 11. Nd6 {[%clk
0:02:26.1]} 11... Qc7 {[%clk 0:02:40.6]} 12. Bf4 {[%clk 0:02:23.2]} 12... e5
{[%clk 0:02:38]} 13. Be3 {[%clk 0:02:23]} 13... f5 {[%clk 0:02:29.9]} 14. exf5
{[%clk 0:02:22.1]} 14... gxf5 {[%clk 0:02:29.3]} 15. Qb3+ {[%clk 0:02:18.8]}
15... Kh8 {[%clk 0:02:26.4]} 16. Nf7+ {[%clk 0:02:18.6]} 16... Rxf7 {[%clk
0:02:25.9]} 17. Qxf7 {[%clk 0:02:19.5]} 17... Qd8 {[%clk 0:02:21]} 18. Ng5
{[%clk 0:02:16.7]} 18... h6 {[%clk 0:02:19.3]} 19. Qh5 {[%clk 0:02:10]} 19...
Kg8 {[%clk 0:02:16.5]} 20. Nf7 {[%clk 0:02:03.3]} 20... Qf8 {[%clk 0:02:15.4]}
21. Nxh6+ {[%clk 0:02:02.5]} 21... Bxh6 {[%clk 0:02:12]} 22. Bxh6 {[%clk
0:02:02.4]} 22... Qf6 {[%clk 0:02:11.7]} 23. Bg5 {[%clk 0:02:00.8]} 23... Qg7
{[%clk 0:02:11.4]} 24. Qe8+ {[%clk 0:01:57.8]} 24... Kh7 {[%clk 0:02:10.4]} 25.
Qh5+ {[%clk 0:01:55.2]} 25... Kg8 {[%clk 0:02:09.7]} 26. Bh6 {[%clk 0:01:42.6]}
26... Qf6 {[%clk 0:02:08.6]} 27. Qg5+ {[%clk 0:01:42.9]} 27... Qxg5 {[%clk
0:02:07.3]} 28. Bxg5 {[%clk 0:01:43.6]} 28... Kf7 {[%clk 0:02:03.9]} 29. Rfe1
{[%clk 0:01:42.2]} 29... e4 {[%clk 0:02:02.9]} 30. h4 {[%clk 0:01:40.8]} 30...
Nd5 {[%clk 0:02:01]} 31. Be3 {[%clk 0:01:37.8]} 31... d6 {[%clk 0:02:00.5]} 32.
cxd6 {[%clk 0:01:37.5]} 32... Be6 {[%clk 0:02:01.1]} 33. Rad1 {[%clk 0:01:33.2]}
33... Ne5 {[%clk 0:01:58.8]} 34. Bf4 {[%clk 0:01:26.8]} 34... Nd3 {[%clk
0:01:54.9]} 35. Rxd3 {[%clk 0:00:49.2]} 35... exd3 {[%clk 0:01:55.8]} 36. Rd1
{[%clk 0:00:42.3]} 36... Nxf4 {[%clk 0:01:24.3]} 37. gxf4 {[%clk 0:00:43.2]}
37... Rg8 {[%clk 0:01:23.9]} 38. Rxd3 {[%clk 0:00:43.3]} 38... Bc4 {[%clk
0:01:19.1]} 39. Rg3 {[%clk 0:00:36.2]} 39... Rd8 {[%clk 0:01:17.9]} 40. b3
{[%clk 0:00:33.4]} 40... Be2 {[%clk 0:01:05.2]} 41. Bxb7 {[%clk 0:00:30]} 41...
Rxd6 {[%clk 0:01:04.2]} 42. Bf3 {[%clk 0:00:29.2]} 42... Bb5 {[%clk 0:00:59.9]}
43. c4 {[%clk 0:00:28.5]} 43... Bd7 {[%clk 0:00:59.6]} 44. Bd5+ {[%clk 0:00:28]}
44... Kf8 {[%clk 0:00:54.9]} 45. h5 {[%clk 0:00:27.9]} 45... Be8 {[%clk
0:00:54.1]} 46. Rg5 {[%clk 0:00:27.7]} 46... Rf6 {[%clk 0:00:53.8]} 47. Kg2
{[%clk 0:00:26.9]} 47... a5 {[%clk 0:00:51.9]} 48. c5 {[%clk 0:00:26.1]} 48...
Ke7 {[%clk 0:00:51.8]} 49. a3 {[%clk 0:00:25.7]} 49... Kd8 {[%clk 0:00:51.7]}
50. b4 {[%clk 0:00:25.5]} 50... axb4 {[%clk 0:00:52.6]} 51. axb4 {[%clk
0:00:26.4]} 51... Kc7 {[%clk 0:00:52.9]} 52. Kf3 {[%clk 0:00:26.3]} 52... Bb5
{[%clk 0:00:50.6]} 53. Rg7+ {[%clk 0:00:24.6]} 53... Kc8 {[%clk 0:00:50.9]} 54.
Rg6 {[%clk 0:00:23.7]} 54... Rf8 {[%clk 0:00:47.8]} 55. Rg8 {[%clk 0:00:23.9]}
55... Rxg8 {[%clk 0:00:48.1]} 56. Bxg8 {[%clk 0:00:24.8]} 1-0

[Event "*** Titled Tuesday Blitz"]
[Site "Chess.com"]
[Date "2020.11.24"]
[Round "9"]
[White "parintele_chess"]
[Black "esskeettit"]
[Result "0-1"]
[WhiteElo "2181"]
[BlackElo "2446"]
[TimeControl "180+1"]
[EndTime "12:03:05 PST"]
[Termination "esskeettit won on time"]

1. d4 {[%clk 0:03:00.3]} 1... Nf6 {[%clk 0:02:59.5]} 2. c4 {[%clk 0:02:56.2]}
2... e6 {[%clk 0:02:56.2]} 3. Nc3 {[%clk 0:02:54.8]} 3... d5 {[%clk 0:02:56.6]}
4. cxd5 {[%clk 0:02:49.4]} 4... exd5 {[%clk 0:02:57.5]} 5. Bg5 {[%clk
0:02:49.7]} 5... Be7 {[%clk 0:02:46]} 6. e3 {[%clk 0:02:49.5]} 6... c6 {[%clk
0:02:44.1]} 7. Bd3 {[%clk 0:02:49.2]} 7... O-O {[%clk 0:02:42.9]} 8. Qc2 {[%clk
0:02:48.5]} 8... Nbd7 {[%clk 0:02:41]} 9. Nf3 {[%clk 0:02:47.4]} 9... Re8 {[%clk
0:02:29.7]} 10. O-O {[%clk 0:02:46.4]} 10... Nf8 {[%clk 0:02:29.1]} 11. Ne5
{[%clk 0:02:45.8]} 11... g6 {[%clk 0:02:21.7]} 12. f4 {[%clk 0:02:43.7]} 12...
Ne6 {[%clk 0:02:12.5]} 13. Bh4 {[%clk 0:02:32.2]} 13... Ng7 {[%clk 0:02:04.5]}
14. f5 {[%clk 0:02:22]} 14... c5 {[%clk 0:01:49.8]} 15. Nxf7 {[%clk 0:02:13.4]}
15... Kxf7 {[%clk 0:01:47.2]} 16. fxg6+ {[%clk 0:02:13.1]} 16... Kg8 {[%clk
0:01:45.3]} 17. gxh7+ {[%clk 0:02:11.7]} 17... Kh8 {[%clk 0:01:45.4]} 18. Bg6
{[%clk 0:01:42.9]} 18... Rf8 {[%clk 0:01:42.7]} 19. dxc5 {[%clk 0:01:10]} 19...
Bxc5 {[%clk 0:01:41.2]} 20. Rad1 {[%clk 0:01:07.9]} 20... Bxe3+ {[%clk
0:01:15.3]} 21. Kh1 {[%clk 0:01:07.4]} 21... Be6 {[%clk 0:01:09.5]} 22. Qe2
{[%clk 0:00:51.6]} 22... Bh6 {[%clk 0:00:37.8]} 23. Qe5 {[%clk 0:00:39.1]} 23...
Ng4 {[%clk 0:00:32.8]} 24. Qg3 {[%clk 0:00:22.5]} 24... Qb6 {[%clk 0:00:30.9]}
25. Nxd5 {[%clk 0:00:16.3]} 25... Bxd5 {[%clk 0:00:20.7]} 26. Qxg4 {[%clk
0:00:16]} 26... Rxf1+ {[%clk 0:00:18.6]} 27. Rxf1 {[%clk 0:00:16.8]} 27... Qb5
{[%clk 0:00:17.2]} 28. Rg1 {[%clk 0:00:04.1]} 28... Qc6 {[%clk 0:00:16]} 29. Bg3
{[%clk 0:00:04.1]} 29... Be6 {[%clk 0:00:13.6]} 30. Qe2 {[%clk 0:00:04]} 30...
Bc4 {[%clk 0:00:12.9]} 31. Qf3 {[%clk 0:00:04]} 31... Qxg6 {[%clk 0:00:12.5]}
32. Qxb7 {[%clk 0:00:03.6]} 32... Rf8 {[%clk 0:00:12.4]} 33. Qb4 {[%clk
0:00:03.2]} 33... Qf7 {[%clk 0:00:12.1]} 0-1

[Event "*** Titled Tuesday Blitz"]
[Site "Chess.com"]
[Date "2020.11.24"]
[Round "9"]
[White "SerGo055"]
[Black "ArjunErigaisi2003"]
[Result "1/2-1/2"]
[WhiteElo "2517"]
[BlackElo "2911"]
[TimeControl "180+1"]
[EndTime "12:03:06 PST"]
[Termination "Game drawn by repetition"]

1. d4 {[%clk 0:03:00.9]} 1... Nf6 {[%clk 0:02:30.8]} 2. Nf3 {[%clk 0:02:57]}
2... g6 {[%clk 0:02:28.3]} 3. c4 {[%clk 0:02:56.8]} 3... Bg7 {[%clk 0:02:26.3]}
4. Nc3 {[%clk 0:02:56.2]} 4... O-O {[%clk 0:02:27.2]} 5. Bg5 {[%clk 0:02:56]}
5... d6 {[%clk 0:02:27.9]} 6. Qd2 {[%clk 0:02:55.1]} 6... c5 {[%clk 0:02:25.8]}
7. d5 {[%clk 0:02:54.5]} 7... Nbd7 {[%clk 0:02:23.9]} 8. Bh6 {[%clk 0:02:51.8]}
8... a6 {[%clk 0:02:23.6]} 9. h4 {[%clk 0:02:43]} 9... Bxh6 {[%clk 0:02:11.1]}
10. Qxh6 {[%clk 0:02:41.5]} 10... Ng4 {[%clk 0:02:12]} 11. Qf4 {[%clk 0:02:36]}
11... h5 {[%clk 0:02:11.9]} 12. e4 {[%clk 0:02:35.1]} 12... e5 {[%clk
0:01:39.3]} 13. dxe6 {[%clk 0:02:29.5]} 13... Nde5 {[%clk 0:01:40.2]} 14. e7
{[%clk 0:02:17.2]} 14... Qxe7 {[%clk 0:01:39]} 15. Nd5 {[%clk 0:02:17.7]} 15...
Qd8 {[%clk 0:01:35.4]} 16. Be2 {[%clk 0:02:16.4]} 16... Be6 {[%clk 0:01:32.2]}
17. O-O-O {[%clk 0:02:04.3]} 17... f6 {[%clk 0:01:11.6]} 18. Rhf1 {[%clk
0:01:49.2]} 18... b5 {[%clk 0:00:59.2]} 19. Nxe5 {[%clk 0:01:35.4]} 19... Nxe5
{[%clk 0:00:51.1]} 20. Qh6 {[%clk 0:01:16.2]} 20... Rf7 {[%clk 0:00:42.3]} 21.
f4 {[%clk 0:00:53.6]} 21... Rh7 {[%clk 0:00:40.2]} 22. Nxf6+ {[%clk 0:00:53.6]}
22... Qxf6 {[%clk 0:00:35.6]} 23. fxe5 {[%clk 0:00:53.8]} 23... Qxe5 {[%clk
0:00:26.3]} 24. Qxg6+ {[%clk 0:00:49.9]} 24... Rg7 {[%clk 0:00:26.5]} 25. Qxh5
{[%clk 0:00:45.1]} 25... Qxh5 {[%clk 0:00:24.9]} 26. Bxh5 {[%clk 0:00:44.5]}
26... Bxc4 {[%clk 0:00:25.8]} 27. Rg1 {[%clk 0:00:39.8]} 27... Rd8 {[%clk
0:00:22.9]} 28. b3 {[%clk 0:00:35.6]} 28... Bf7 {[%clk 0:00:23]} 29. Bxf7+
{[%clk 0:00:34.4]} 29... Kxf7 {[%clk 0:00:23.9]} 30. g4 {[%clk 0:00:34.2]} 30...
Ke6 {[%clk 0:00:24.4]} 31. g5 {[%clk 0:00:27.8]} 31... Rh8 {[%clk 0:00:24]} 32.
Rg4 {[%clk 0:00:27.8]} 32... Rgh7 {[%clk 0:00:23.4]} 33. Rh1 {[%clk 0:00:21]}
33... Rh5 {[%clk 0:00:20.4]} 34. Kd2 {[%clk 0:00:20.1]} 34... Ke5 {[%clk
0:00:19.7]} 35. Ke3 {[%clk 0:00:20.2]} 35... a5 {[%clk 0:00:19.6]} 36. Rf4
{[%clk 0:00:18.4]} 36... Rxg5 {[%clk 0:00:19.3]} 37. hxg5 {[%clk 0:00:14.4]}
37... Rxh1 {[%clk 0:00:20.2]} 38. Rf5+ {[%clk 0:00:14.5]} 38... Ke6 {[%clk
0:00:20.7]} 39. Rf6+ {[%clk 0:00:15.1]} 39... Ke5 {[%clk 0:00:20.1]} 40. Rf5+
{[%clk 0:00:15.1]} 40... Ke6 {[%clk 0:00:20.3]} 41. Rf6+ {[%clk 0:00:15.7]}
41... Ke5 {[%clk 0:00:17.6]} 42. Rf5+ {[%clk 0:00:15.8]} 1/2-1/2

[Event "*** Titled Tuesday Blitz"]
[Site "Chess.com"]
[Date "2020.11.24"]
[Round "9"]
[White "Campelov"]
[Black "Trickov"]
[Result "0-1"]
[WhiteElo "2199"]
[BlackElo "2359"]
[TimeControl "180+1"]
[EndTime "12:03:15 PST"]
[Termination "Trickov won by resignation"]

1. e4 {[%clk 0:03:00.9]} 1... c5 {[%clk 0:02:59.3]} 2. Nf3 {[%clk 0:03:00.7]}
2... d6 {[%clk 0:02:58.4]} 3. d4 {[%clk 0:02:58.8]} 3... Nf6 {[%clk 0:02:56.9]}
4. Nc3 {[%clk 0:02:58.3]} 4... cxd4 {[%clk 0:02:56.3]} 5. Nxd4 {[%clk
0:02:52.3]} 5... a6 {[%clk 0:02:54.2]} 6. Rg1 {[%clk 0:02:52.5]} 6... e5 {[%clk
0:02:38.3]} 7. Nb3 {[%clk 0:02:48.8]} 7... Be6 {[%clk 0:02:32.9]} 8. g4 {[%clk
0:02:48.1]} 8... Nbd7 {[%clk 0:02:26.9]} 9. g5 {[%clk 0:02:46.7]} 9... Ng8
{[%clk 0:02:23.9]} 10. Be3 {[%clk 0:02:44.2]} 10... Rc8 {[%clk 0:02:06.2]} 11.
Qd2 {[%clk 0:02:41.1]} 11... Be7 {[%clk 0:01:52.5]} 12. h4 {[%clk 0:02:38.8]}
12... b5 {[%clk 0:01:44.7]} 13. O-O-O {[%clk 0:02:35.5]} 13... Nb6 {[%clk
0:01:44.1]} 14. Na5 {[%clk 0:02:03.9]} 14... Qc7 {[%clk 0:01:37.4]} 15. Bxb6
{[%clk 0:01:44.8]} 15... Qxb6 {[%clk 0:01:36.3]} 16. Nd5 {[%clk 0:01:45]} 16...
Bxd5 {[%clk 0:01:32.7]} 17. exd5 {[%clk 0:01:45.1]} 17... Bd8 {[%clk 0:01:28.3]}
18. Nc6 {[%clk 0:01:38.2]} 18... Ne7 {[%clk 0:01:26.9]} 19. Bh3 {[%clk
0:01:36.1]} 19... Ra8 {[%clk 0:01:10.7]} 20. Bg2 {[%clk 0:01:16.5]} 20... O-O
{[%clk 0:01:01.6]} 21. f4 {[%clk 0:01:10.8]} 21... exf4 {[%clk 0:00:43.3]} 22.
Qxf4 {[%clk 0:01:07.8]} 22... Qc7 {[%clk 0:00:41.8]} 23. h5 {[%clk 0:00:59]}
23... Qd7 {[%clk 0:00:40.3]} 24. Be4 {[%clk 0:00:49]} 24... Bb6 {[%clk
0:00:35.6]} 25. Rg2 {[%clk 0:00:39.3]} 25... Rae8 {[%clk 0:00:32.8]} 26. h6
{[%clk 0:00:20]} 26... Nxd5 {[%clk 0:00:25.2]} 27. Bxd5 {[%clk 0:00:18.3]} 27...
Be3+ {[%clk 0:00:23.5]} 28. Qxe3 {[%clk 0:00:18.5]} 28... Rxe3 {[%clk
0:00:23.5]} 29. hxg7 {[%clk 0:00:18.9]} 29... Kxg7 {[%clk 0:00:22.3]} 30. Rf1
{[%clk 0:00:16.8]} 30... Qh3 {[%clk 0:00:19.3]} 31. Nd4 {[%clk 0:00:14.9]} 31...
Re5 {[%clk 0:00:16.8]} 32. Rgf2 {[%clk 0:00:11.4]} 32... Rxd5 {[%clk 0:00:16]}
33. Nf5+ {[%clk 0:00:11.6]} 33... Rxf5 {[%clk 0:00:14]} 34. Rxf5 {[%clk
0:00:11.1]} 34... Qe3+ {[%clk 0:00:13.7]} 35. Kb1 {[%clk 0:00:10.9]} 35... Qe4
{[%clk 0:00:12.1]} 36. b3 {[%clk 0:00:10.5]} 36... d5 {[%clk 0:00:11.2]} 0-1

[Event "*** Titled Tuesday Blitz"]
[Site "Chess.com"]
[Date "2020.11.24"]
[Round "9"]
[White "J36225"]
[Black "Korchmar_Vasiliy"]
[Result "1-0"]
[WhiteElo "2533"]
[BlackElo "2592"]
[TimeControl "180+1"]
[EndTime "12:03:16 PST"]
[Termination "J36225 won by resignation"]

1. c4 {[%clk 0:03:00.9]} 1... c6 {[%clk 0:02:57.8]} 2. Nf3 {[%clk 0:02:59.5]}
2... d5 {[%clk 0:02:57.9]} 3. d4 {[%clk 0:02:59.8]} 3... Nf6 {[%clk 0:02:58.3]}
4. Nc3 {[%clk 0:02:59.6]} 4... a6 {[%clk 0:02:53.7]} 5. cxd5 {[%clk 0:02:59]}
5... cxd5 {[%clk 0:02:53.2]} 6. Bf4 {[%clk 0:02:59.2]} 6... Nc6 {[%clk
0:02:51.9]} 7. e3 {[%clk 0:02:59.4]} 7... Bg4 {[%clk 0:02:48.6]} 8. Bd3 {[%clk
0:02:57.9]} 8... e6 {[%clk 0:02:47.8]} 9. O-O {[%clk 0:02:56.7]} 9... Be7 {[%clk
0:02:47.1]} 10. h3 {[%clk 0:02:56.3]} 10... Bh5 {[%clk 0:02:46.8]} 11. a3 {[%clk
0:02:52.8]} 11... O-O {[%clk 0:02:43.3]} 12. Rc1 {[%clk 0:02:52.3]} 12... Rc8
{[%clk 0:02:38.3]} 13. Be2 {[%clk 0:02:51.1]} 13... b5 {[%clk 0:02:33.9]} 14.
Ne5 {[%clk 0:02:46.4]} 14... Bxe2 {[%clk 0:02:32.3]} 15. Qxe2 {[%clk 0:02:47.3]}
15... Na5 {[%clk 0:02:26.1]} 16. Qd1 {[%clk 0:02:11.7]} 16... Nd7 {[%clk
0:02:14.3]} 17. Nd3 {[%clk 0:02:11]} 17... Nc4 {[%clk 0:02:10.2]} 18. Nb1 {[%clk
0:02:03.3]} 18... Ndb6 {[%clk 0:01:55.2]} 19. Nc5 {[%clk 0:01:55.6]} 19... Bxc5
{[%clk 0:01:38.3]} 20. dxc5 {[%clk 0:01:54.6]} 20... Rxc5 {[%clk 0:01:39.2]} 21.
b3 {[%clk 0:01:49.7]} 21... Nb2 {[%clk 0:01:01.6]} 22. Qd4 {[%clk 0:01:35.9]}
22... Rxc1 {[%clk 0:00:57.6]} 23. Rxc1 {[%clk 0:01:35]} 23... N6c4 {[%clk
0:00:55]} 24. bxc4 {[%clk 0:01:30.7]} 24... Nxc4 {[%clk 0:00:55.9]} 25. Qc3
{[%clk 0:01:14.8]} 25... Qe7 {[%clk 0:00:53.7]} 26. Nd2 {[%clk 0:01:06.1]} 26...
Nxa3 {[%clk 0:00:35.6]} 27. Qa5 {[%clk 0:00:56.1]} 27... Nc4 {[%clk 0:00:22.4]}
28. Nxc4 {[%clk 0:00:54.4]} 28... bxc4 {[%clk 0:00:19.5]} 29. Qxa6 {[%clk
0:00:54.3]} 29... Qf6 {[%clk 0:00:19.6]} 30. Qa3 {[%clk 0:00:44.2]} 30... e5
{[%clk 0:00:13.6]} 31. Bg3 {[%clk 0:00:42.2]} 31... Rc8 {[%clk 0:00:13.4]} 32.
Qa1 {[%clk 0:00:19.5]} 32... Re8 {[%clk 0:00:06.2]} 33. Rd1 {[%clk 0:00:18.6]}
33... Qe6 {[%clk 0:00:05.8]} 34. Qc3 {[%clk 0:00:18.2]} 34... f6 {[%clk
0:00:04.6]} 35. f3 {[%clk 0:00:17.8]} 35... Qf7 {[%clk 0:00:04.9]} 36. Bf2
{[%clk 0:00:17.3]} 36... Rc8 {[%clk 0:00:05]} 37. Rb1 {[%clk 0:00:16.9]} 37...
h6 {[%clk 0:00:04.3]} 38. Rb6 {[%clk 0:00:15.9]} 38... Qb7 {[%clk 0:00:03.5]}
39. Rxb7 {[%clk 0:00:15.6]} 1-0

[Event "*** Titled Tuesday Blitz"]
[Site "Chess.com"]
[Date "2020.11.24"]
[Round "9"]
[White "andrzej"]
[Black "korbul"]
[Result "0-1"]
[WhiteElo "2392"]
[BlackElo "2555"]
[TimeControl "180+1"]
[EndTime "12:03:18 PST"]
[Termination "korbul won on time"]

1. e4 {[%clk 0:03:00.9]} 1... c5 {[%clk 0:02:59.7]} 2. Nf3 {[%clk 0:03:01]} 2...
e6 {[%clk 0:03:00]} 3. d4 {[%clk 0:03:01.4]} 3... cxd4 {[%clk 0:03:00.2]} 4.
Nxd4 {[%clk 0:03:02.3]} 4... Nf6 {[%clk 0:03:00.3]} 5. Nc3 {[%clk 0:03:02]} 5...
d6 {[%clk 0:03:00.6]} 6. Be2 {[%clk 0:02:58.9]} 6... a6 {[%clk 0:03:00.2]} 7.
O-O {[%clk 0:02:58.3]} 7... Qc7 {[%clk 0:03:00.4]} 8. Be3 {[%clk 0:02:49.4]}
8... Nbd7 {[%clk 0:03:00]} 9. g4 {[%clk 0:02:38.6]} 9... h6 {[%clk 0:02:57.4]}
10. f4 {[%clk 0:02:38]} 10... g6 {[%clk 0:02:57.5]} 11. Bf3 {[%clk 0:02:26.3]}
11... e5 {[%clk 0:02:54]} 12. Nb3 {[%clk 0:02:15.8]} 12... exf4 {[%clk
0:02:51.9]} 13. Bxf4 {[%clk 0:02:15.1]} 13... Ne5 {[%clk 0:02:52.2]} 14. Bxe5
{[%clk 0:01:54.7]} 14... dxe5 {[%clk 0:02:53.1]} 15. Nd5 {[%clk 0:01:52.5]}
15... Nxd5 {[%clk 0:02:51.8]} 16. exd5 {[%clk 0:01:52.6]} 16... Bd6 {[%clk
0:02:50]} 17. Nd2 {[%clk 0:01:47.8]} 17... f5 {[%clk 0:02:46.3]} 18. gxf5 {[%clk
0:01:46]} 18... gxf5 {[%clk 0:02:45.9]} 19. Bh5+ {[%clk 0:01:45.2]} 19... Ke7
{[%clk 0:02:43.1]} 20. Nf3 {[%clk 0:01:21.5]} 20... Bd7 {[%clk 0:02:33.1]} 21.
Nh4 {[%clk 0:01:13.8]} 21... Rag8+ {[%clk 0:02:30.9]} 22. Kh1 {[%clk 0:01:13.1]}
22... Rg5 {[%clk 0:02:21.5]} 23. Ng6+ {[%clk 0:01:06.7]} 23... Rxg6 {[%clk
0:02:21.1]} 24. Bxg6 {[%clk 0:01:07.6]} 24... Rf8 {[%clk 0:02:09.7]} 25. Qh5
{[%clk 0:01:04.3]} 25... Qc5 {[%clk 0:01:50.9]} 26. Qh4+ {[%clk 0:00:46.7]}
26... Rf6 {[%clk 0:01:49.5]} 27. c4 {[%clk 0:00:43.2]} 27... f4 {[%clk
0:01:04.3]} 28. Rae1 {[%clk 0:00:34.9]} 28... Qxc4 {[%clk 0:00:51.6]} 29. Be4
{[%clk 0:00:25.5]} 29... Qb4 {[%clk 0:00:28.3]} 30. Rg1 {[%clk 0:00:19.6]} 30...
Be8 {[%clk 0:00:26.5]} 31. a3 {[%clk 0:00:09.8]} 31... Qd4 {[%clk 0:00:24]} 32.
Rg7+ {[%clk 0:00:08]} 32... Bf7 {[%clk 0:00:23.9]} 33. Rxf7+ {[%clk 0:00:07.3]}
33... Kxf7 {[%clk 0:00:23.4]} 34. Qh5+ {[%clk 0:00:05.3]} 34... Ke7 {[%clk
0:00:23.6]} 35. Qg4 {[%clk 0:00:03.7]} 35... f3 {[%clk 0:00:20.9]} 36. Qg7+
{[%clk 0:00:02.4]} 36... Rf7 {[%clk 0:00:21.2]} 37. Qg6 {[%clk 0:00:02.3]} 37...
f2 {[%clk 0:00:20]} 38. Qe6+ {[%clk 0:00:02.3]} 38... Kf8 {[%clk 0:00:19.3]} 39.
Qxd6+ {[%clk 0:00:02.3]} 39... Re7 {[%clk 0:00:17.8]} 40. Qf6+ {[%clk
0:00:01.9]} 40... Ke8 {[%clk 0:00:18.1]} 0-1

[Event "*** Titled Tuesday Blitz"]
[Site "Chess.com"]
[Date "2020.11.24"]
[Round "9"]
[White "RD4ever"]
[Black "AryanTari"]
[Result "0-1"]
[WhiteElo "2821"]
[BlackElo "2910"]
[TimeControl "180+1"]
[EndTime "12:03:19 PST"]
[Termination "AryanTari won on time"]

1. e4 {[%clk 0:03:00.9]} 1... c5 {[%clk 0:02:49]} 2. Nf3 {[%clk 0:02:59.5]} 2...
Nc6 {[%clk 0:02:47]} 3. Bb5 {[%clk 0:02:58.2]} 3... e6 {[%clk 0:02:40.7]} 4.
Bxc6 {[%clk 0:02:57.8]} 4... bxc6 {[%clk 0:02:39.3]} 5. d3 {[%clk 0:02:58.7]}
5... Ne7 {[%clk 0:02:36.3]} 6. Bd2 {[%clk 0:02:58.8]} 6... Ng6 {[%clk
0:02:32.6]} 7. h4 {[%clk 0:02:55]} 7... h5 {[%clk 0:02:30.1]} 8. Bc3 {[%clk
0:02:54.8]} 8... d6 {[%clk 0:02:25.4]} 9. e5 {[%clk 0:02:54.4]} 9... f6 {[%clk
0:02:22.7]} 10. exd6 {[%clk 0:02:51.7]} 10... Bxd6 {[%clk 0:02:19.1]} 11. Nbd2
{[%clk 0:02:49.7]} 11... e5 {[%clk 0:02:18.2]} 12. Qe2 {[%clk 0:02:20.4]} 12...
Nf4 {[%clk 0:02:15.4]} 13. Qe4 {[%clk 0:02:20.1]} 13... O-O {[%clk 0:02:11.6]}
14. Nc4 {[%clk 0:01:28.3]} 14... Bc7 {[%clk 0:02:06.3]} 15. O-O-O {[%clk
0:01:05.9]} 15... Nd5 {[%clk 0:01:51.7]} 16. Bd2 {[%clk 0:01:01.4]} 16... Rb8
{[%clk 0:01:48.3]} 17. Ne3 {[%clk 0:00:46.2]} 17... Be6 {[%clk 0:01:43.7]} 18.
Qa4 {[%clk 0:00:44.1]} 18... Qd7 {[%clk 0:01:40.7]} 19. Nc4 {[%clk 0:00:39.5]}
19... Nb6 {[%clk 0:01:39.3]} 20. Qa3 {[%clk 0:00:35]} 20... Nxc4 {[%clk
0:01:34]} 21. dxc4 {[%clk 0:00:34.8]} 21... Bxc4 {[%clk 0:01:34.5]} 22. Be3
{[%clk 0:00:29.2]} 22... Qe6 {[%clk 0:01:31.8]} 23. b3 {[%clk 0:00:28.5]} 23...
Bd5 {[%clk 0:01:29]} 24. Bxc5 {[%clk 0:00:28.2]} 24... Rfd8 {[%clk 0:01:25.7]}
25. Rd2 {[%clk 0:00:27.3]} 25... Kh7 {[%clk 0:01:19.6]} 26. Rhd1 {[%clk
0:00:26.4]} 26... Rb5 {[%clk 0:01:14.7]} 27. c4 {[%clk 0:00:21.5]} 27... Ra5
{[%clk 0:01:13.1]} 28. cxd5 {[%clk 0:00:21.7]} 28... cxd5 {[%clk 0:01:10.6]} 29.
Qb4 {[%clk 0:00:20.4]} 29... d4 {[%clk 0:01:08.4]} 30. Rc2 {[%clk 0:00:19.9]}
30... Rd5 {[%clk 0:01:04]} 31. Bf8 {[%clk 0:00:18.7]} 31... Qf7 {[%clk
0:01:00.4]} 32. Qe7 {[%clk 0:00:18.4]} 32... Rd7 {[%clk 0:00:57.2]} 33. Qxf7
{[%clk 0:00:17.9]} 33... Rxf7 {[%clk 0:00:58.1]} 34. Bb4 {[%clk 0:00:18.2]}
34... Ra6 {[%clk 0:00:54.5]} 35. Bc5 {[%clk 0:00:18.2]} 35... Rd7 {[%clk
0:00:51.3]} 36. b4 {[%clk 0:00:18.5]} 36... d3 {[%clk 0:00:49]} 37. Rc3 {[%clk
0:00:15.6]} 37... Rxa2 {[%clk 0:00:46.4]} 38. Kb1 {[%clk 0:00:12.6]} 38... Ra4
{[%clk 0:00:44.3]} 39. Nd2 {[%clk 0:00:10.3]} 39... f5 {[%clk 0:00:41.7]} 40. f3
{[%clk 0:00:10.7]} 40... e4 {[%clk 0:00:39.7]} 41. fxe4 {[%clk 0:00:10.9]} 41...
Be5 {[%clk 0:00:37.4]} 42. Rdc1 {[%clk 0:00:08.4]} 42... a5 {[%clk 0:00:32.3]}
43. b5 {[%clk 0:00:03.7]} 43... fxe4 {[%clk 0:00:32.5]} 44. b6 {[%clk
0:00:03.4]} 44... Rd5 {[%clk 0:00:30.2]} 45. Nb3 {[%clk 0:00:01.3]} 45... d2
{[%clk 0:00:28]} 0-1